[Event "Torneo Nuevo Centro. Jornada 10"]
[Site "Chess.com"]
[Date "2020.08.21"]
[Round "2"]
[White "Pardo Ruiz, Beatriz"]
[Black "Buenafe Moya, Javier"]
[Result "0-1"]
[WhiteElo "1331"]
[BlackElo "1937"]
[TimeControl "180+2"]
[EndTime "10:45:45 PDT"]
[Termination "Victoria de JavierBuenafeMoya por tiempo"]

1. e4 {[%clk 0:03:01.1]} 1... e5 {[%clk 0:02:56.4]} 2. Nf3 {[%clk 0:02:58.7]}
2... Nc6 {[%clk 0:02:55.9]} 3. Bc4 {[%clk 0:02:59]} 3... Bc5 {[%clk 0:02:52.2]}
4. Nc3 {[%clk 0:02:55.1]} 4... Nf6 {[%clk 0:02:52.3]} 5. d3 {[%clk 0:02:53.8]}
5... h6 {[%clk 0:02:52.1]} 6. Be3 {[%clk 0:02:52.7]} 6... Bxe3 {[%clk
0:02:33.1]} 7. fxe3 {[%clk 0:02:54.6]} 7... O-O {[%clk 0:02:33]} 8. O-O {[%clk
0:02:54.5]} 8... d6 {[%clk 0:02:32.4]} 9. h3 {[%clk 0:02:51.5]} 9... Be6 {[%clk
0:02:32.6]} 10. Nd5 {[%clk 0:02:49.6]} 10... Na5 {[%clk 0:02:25.7]} 11. Nxf6+
{[%clk 0:02:45]} 11... Qxf6 {[%clk 0:02:22.2]} 12. Bb3 {[%clk 0:02:36]} 12...
Nxb3 {[%clk 0:02:17.9]} 13. axb3 {[%clk 0:02:37.9]} 13... Qg6 {[%clk 0:02:17.9]}
14. Kh2 {[%clk 0:02:32.4]} 14... a6 {[%clk 0:02:17.1]} 15. Qe2 {[%clk
0:02:21.4]} 15... Qh7 {[%clk 0:02:16.8]} 16. Qf2 {[%clk 0:01:35.5]} 16... f5
{[%clk 0:02:15.9]} 17. exf5 {[%clk 0:01:33.5]} 17... Rxf5 {[%clk 0:02:15]} 18.
Qg3 {[%clk 0:01:32.3]} 18... Raf8 {[%clk 0:02:13.6]} 19. e4 {[%clk 0:01:27]}
19... Rf4 {[%clk 0:02:12.3]} 20. Ra4 {[%clk 0:00:51.5]} 20... g5 {[%clk
0:02:06.7]} 0

[Event "Torneo Nuevo Centro. Jornada 10"]
[Site "Chess.com"]
[Date "2020.08.21"]
[Round "2"]
[White "Perez Garcia, Jose Miguel"]
[Black "Martínez Escandell, Alfonso"]
[Result "0-1"]
[WhiteElo "2062"]
[BlackElo "1853"]
[TimeControl "180+2"]
[EndTime "10:45:50 PDT"]
[Termination "Victoria de Alfonso10 por abandono"]

1. e4 {[%clk 0:02:57.5]} 1... c5 {[%clk 0:03:01.9]} 2. g3 {[%clk 0:02:56.9]}
2... e6 {[%clk 0:03:03.8]} 3. Bg2 {[%clk 0:02:58]} 3... g6 {[%clk 0:02:55]} 4.
Ne2 {[%clk 0:02:54.3]} 4... Bg7 {[%clk 0:02:55.2]} 5. O-O {[%clk 0:02:54.7]}
5... Ne7 {[%clk 0:02:55.2]} 6. c3 {[%clk 0:02:55.8]} 6... O-O {[%clk 0:02:50.7]}
7. d4 {[%clk 0:02:55.1]} 7... cxd4 {[%clk 0:02:50.1]} 8. cxd4 {[%clk 0:02:57]}
8... d5 {[%clk 0:02:48.4]} 9. f3 {[%clk 0:02:58.2]} 9... Nbc6 {[%clk 0:02:44.7]}
10. Be3 {[%clk 0:02:54.4]} 10... Qc7 {[%clk 0:02:39]} 11. Nbc3 {[%clk
0:02:50.8]} 11... Rd8 {[%clk 0:02:35.2]} 12. e5 {[%clk 0:02:46.9]} 12... f6
{[%clk 0:02:30.8]} 13. f4 {[%clk 0:02:40.4]} 13... Bd7 {[%clk 0:02:27.7]} 14.
Nb5 {[%clk 0:02:39.3]} 14... Qb6 {[%clk 0:02:25.3]} 15. Nd6 {[%clk 0:02:37.1]}
15... fxe5 {[%clk 0:02:22.1]} 16. fxe5 {[%clk 0:02:33.8]} 16... Nxe5 {[%clk
0:02:12.5]} 17. Nxb7 {[%clk 0:02:32.1]} 17... Qxb7 {[%clk 0:02:04.3]} 18. dxe5
{[%clk 0:02:32.8]} 18... Bxe5 {[%clk 0:02:04.1]} 19. Bd4 {[%clk 0:02:33.7]}
19... Bxd4+ {[%clk 0:01:49]} 20. Nxd4 {[%clk 0:02:34.4]} 20... Qb6 {[%clk
0:01:38.3]} 21. Kh1 {[%clk 0:02:35]} 21... e5 {[%clk 0:01:34.5]} 22. Nb3 {[%clk
0:02:35.2]} 22... Bb5 {[%clk 0:01:26.8]} 23. Re1 {[%clk 0:02:33.3]} 23... e4
{[%clk 0:01:27.6]} 24. Nd4 {[%clk 0:02:34]} 24... Bd3 {[%clk 0:01:24.4]} 25. b3
{[%clk 0:02:34.6]} 25... Qxd4 {[%clk 0:01:21]} 26. Qg4 {[%clk 0:02:35]} 26...
Nf5 {[%clk 0:01:14.1]} 27. Rf1 {[%clk 0:02:30.1]} 27... Bxf1 {[%clk 0:01:09.6]}
28. Rxf1 {[%clk 0:02:31.1]} 28... Ne3 {[%clk 0:01:02.7]} 29. Qe6+ {[%clk
0:02:31.9]} 29... Kg7 {[%clk 0:00:54.5]} 30. Rf7+ {[%clk 0:02:32.1]} 30... Kh8
{[%clk 0:00:49.5]} 31. h3 {[%clk 0:02:26.5]} 31... Nxg2 {[%clk 0:00:42.8]} 32.
Kxg2 {[%clk 0:02:22.9]} 32... Rf8 {[%clk 0:00:41.7]} 0

[Event "Torneo Nuevo Centro. Jornada 10"]
[Site "Chess.com"]
[Date "2020.08.21"]
[Round "2"]
[White "Méndez Giménez , Néstor Emmanuel"]
[Black "Camison Zornoza, Cesar"]
[Result "0-1"]
[WhiteElo "1235"]
[BlackElo "1792"]
[TimeControl "180+2"]
[EndTime "10:46:11 PDT"]
[Termination "Victoria de cczchess por abandono"]

1. e4 {[%clk 0:03:01.9]} 1... Nf6 {[%clk 0:03:00.3]} 2. Nc3 {[%clk 0:03:02.2]}
2... d5 {[%clk 0:03:00.6]} 3. d3 {[%clk 0:02:59.4]} 3... dxe4 {[%clk 0:02:58.8]}
4. Nxe4 {[%clk 0:02:57.4]} 4... Nxe4 {[%clk 0:02:59.4]} 5. dxe4 {[%clk
0:02:58.1]} 5... Qxd1+ {[%clk 0:03:00.3]} 6. Kxd1 {[%clk 0:02:58.7]} 6... e5
{[%clk 0:02:59.1]} 7. Nf3 {[%clk 0:02:59.7]} 7... Bd6 {[%clk 0:02:59.5]} 8. Bc4
{[%clk 0:02:58.6]} 8... f6 {[%clk 0:02:57.8]} 9. Be3 {[%clk 0:02:56]} 9... Bg4
{[%clk 0:02:57]} 10. Bd5 {[%clk 0:02:53.1]} 10... c6 {[%clk 0:02:55.1]} 11. Bb3
{[%clk 0:02:52.3]} 11... Nd7 {[%clk 0:02:53.4]} 12. h3 {[%clk 0:02:45.8]} 12...
Bxf3+ {[%clk 0:02:53.9]} 13. gxf3 {[%clk 0:02:46.4]} 13... Rd8 {[%clk
0:02:50.4]} 14. Rg1 {[%clk 0:02:46.8]} 14... g5 {[%clk 0:02:48.5]} 15. h4 {[%clk
0:02:46.1]} 15... h6 {[%clk 0:02:49.1]} 16. hxg5 {[%clk 0:02:43.8]} 16... hxg5
{[%clk 0:02:49.4]} 17. Kd2 {[%clk 0:02:37.1]} 17... Nc5 {[%clk 0:02:49.4]} 18.
Bxc5 {[%clk 0:02:37.1]} 18... Bxc5+ {[%clk 0:02:50]} 19. Ke2 {[%clk 0:02:37.7]}
19... Rh2 {[%clk 0:02:49.9]} 20. Rgf1 {[%clk 0:02:32.4]} 20... Ke7 {[%clk
0:02:38.5]} 21. c3 {[%clk 0:02:27.2]} 21... Rdh8 {[%clk 0:02:36.4]} 22. Bc2
{[%clk 0:02:13.6]} 22... Rxf2+ {[%clk 0:02:09.2]} 23. Rxf2 {[%clk 0:02:13.3]}
23... Bxf2 {[%clk 0:02:09.7]} 24. Kxf2 {[%clk 0:02:14.1]} 24... Rh2+ {[%clk
0:02:10.6]} 25. Ke3 {[%clk 0:02:09.7]} 25... Rxc2 {[%clk 0:02:11.3]} 26. Rb1
{[%clk 0:02:04.6]} 26... b5 {[%clk 0:02:10.9]} 27. a3 {[%clk 0:02:02.6]} 27...
a5 {[%clk 0:02:11.2]} 28. b4 {[%clk 0:02:02.9]} 28... a4 {[%clk 0:02:10.5]} 29.
Kd3 {[%clk 0:02:02.8]} 29... Ra2 {[%clk 0:02:11.4]} 30. c4 {[%clk 0:01:59.5]}
30... Rxa3+ {[%clk 0:02:08.7]} 31. Ke2 {[%clk 0:01:58.5]} 31... bxc4 {[%clk
0:02:07.3]} 32. b5 {[%clk 0:01:57.5]} 32... cxb5 {[%clk 0:02:07.8]} 33. Rxb5
{[%clk 0:01:57.7]} 33... Rb3 {[%clk 0:02:09.1]} 34. Rc5 {[%clk 0:01:55.9]} 34...
c3 {[%clk 0:02:09.5]} 35. Kd1 {[%clk 0:01:56]} 35... a3 {[%clk 0:02:10.4]} 36.
Kc2 {[%clk 0:01:55.5]} 36... Rb2+ {[%clk 0:02:06.8]} 37. Kxc3 {[%clk 0:01:55.6]}
37... Rf2 {[%clk 0:02:06.9]} 38. Rc7+ {[%clk 0:01:53.7]} 38... Kd6 {[%clk
0:02:07.1]} 39. Ra7 {[%clk 0:01:52.3]} 39... Rxf3+ {[%clk 0:02:07.7]} 40. Kc2
{[%clk 0:01:52.3]} 40... g4 {[%clk 0:02:08.8]} 41. Kd2 {[%clk 0:01:51.5]} 41...
g3 {[%clk 0:02:09.5]} 42. Ke2 {[%clk 0:01:52.2]} 42... Rf2+ {[%clk 0:02:09.5]}
43. Ke1 {[%clk 0:01:52.1]} 43... a2 {[%clk 0:02:10.6]} 44. Ra6+ {[%clk 0:01:45]}
44... Kc5 {[%clk 0:02:10.8]} 45. Ra8 {[%clk 0:01:45.2]} 45... Kd4 {[%clk
0:02:10.4]} 46. Rd8+ {[%clk 0:01:44.8]} 46... Kxe4 {[%clk 0:02:11.1]} 47. Ra8
{[%clk 0:01:43.4]} 47... Rh2 {[%clk 0:02:11.3]} 48. Kf1 {[%clk 0:01:42.5]} 48...
a1=Q+ {[%clk 0:02:11.4]} 0

[Event "Torneo Nuevo Centro. Jornada 10"]
[Site "Chess.com"]
[Date "2020.08.21"]
[Round "2"]
[White "Grigorev, Artur "]
[Black "Donate Peris, Jose Manuel"]
[Result "0-1"]
[WhiteElo "945"]
[BlackElo "1537"]
[TimeControl "180+2"]
[EndTime "10:46:18 PDT"]
[Termination "Victoria de cheryme por abandono"]

1. e4 {[%clk 0:03:01.9]} 1... e6 {[%clk 0:03:00.5]} 2. d4 {[%clk 0:02:59.9]}
2... d5 {[%clk 0:03:01.2]} 3. exd5 {[%clk 0:03:00.5]} 3... exd5 {[%clk
0:03:00.9]} 4. Nc3 {[%clk 0:02:49.4]} 4... Nf6 {[%clk 0:02:56.2]} 5. g3 {[%clk
0:02:47.9]} 5... Be7 {[%clk 0:02:55.5]} 6. Bg2 {[%clk 0:02:48.3]} 6... c6 {[%clk
0:02:56.4]} 7. Bg5 {[%clk 0:02:46.8]} 7... h6 {[%clk 0:02:55.8]} 8. Bxf6 {[%clk
0:02:46.4]} 8... Bxf6 {[%clk 0:02:56.3]} 9. Qe2+ {[%clk 0:02:46.2]} 9... Be6
{[%clk 0:02:56.8]} 10. O-O-O {[%clk 0:02:35]} 10... O-O {[%clk 0:02:56.6]} 11.
f4 {[%clk 0:02:30.9]} 11... Re8 {[%clk 0:02:54.3]} 12. Qd3 {[%clk 0:02:15.7]}
12... Bg4 {[%clk 0:02:51.4]} 13. Bf3 {[%clk 0:02:10.3]} 13... Bxf3 {[%clk
0:02:47.9]} 14. Nxf3 {[%clk 0:02:10.5]} 14... Nd7 {[%clk 0:02:46]} 15. Rhg1
{[%clk 0:02:03]} 15... Nb6 {[%clk 0:02:45.6]} 16. g4 {[%clk 0:01:58]} 16... Nc4
{[%clk 0:02:38.7]} 17. g5 {[%clk 0:01:44.7]} 17... Re3 {[%clk 0:02:29]} 18. Qf1
{[%clk 0:01:19.9]} 18... hxg5 {[%clk 0:02:29.3]} 19. fxg5 {[%clk 0:01:18.4]}
19... Be7 {[%clk 0:02:29]} 20. g6 {[%clk 0:01:07.6]} 20... fxg6 {[%clk 0:02:20]}
21. Rxg6 {[%clk 0:01:02.2]} 21... Qf8 {[%clk 0:02:19.3]} 22. Qg2 {[%clk
0:00:56.1]} 22... Rxf3 {[%clk 0:02:15.8]} 23. Rxg7+ {[%clk 0:00:49.4]} 23...
Qxg7 {[%clk 0:02:15.5]} 24. Qxg7+ {[%clk 0:00:48.3]} 24... Kxg7 {[%clk
0:02:14.6]} 25. Rg1+ {[%clk 0:00:48.4]} 25... Kf7 {[%clk 0:02:11.8]} 26. Ne2
{[%clk 0:00:40.8]} 26... Rg8 {[%clk 0:02:09.5]} 27. Rxg8 {[%clk 0:00:39.9]}
27... Kxg8 {[%clk 0:02:08.8]} 28. Ng3 {[%clk 0:00:37.4]} 28... Rf2 {[%clk
0:02:05.6]} 29. Kd1 {[%clk 0:00:30.1]} 29... Rxh2 {[%clk 0:02:04.4]} 30. Nf5
{[%clk 0:00:28.5]} 30... Bf6 {[%clk 0:02:00.3]} 31. Ne3 {[%clk 0:00:26.7]} 0

[Event "Torneo Nuevo Centro. Jornada 10"]
[Site "Chess.com"]
[Date "2020.08.21"]
[Round "2"]
[White "Valverde Alcaide, Miguel Alejandro"]
[Black "Soliva Ruiz, Ramon"]
[Result "0-1"]
[WhiteElo "892"]
[BlackElo "1507"]
[TimeControl "180+2"]
[EndTime "10:46:20 PDT"]
[Termination "Victoria de rasoru por jaque mate"]

1. e4 {[%clk 0:03:00]} 1... c5 {[%clk 0:03:00.2]} 2. d4 {[%clk 0:02:42.6]} 2...
cxd4 {[%clk 0:02:59.9]} 3. Qxd4 {[%clk 0:02:42.6]} 3... Nc6 {[%clk 0:03:01.4]}
4. Qc4 {[%clk 0:02:39.3]} 4... e6 {[%clk 0:03:00.7]} 5. f4 {[%clk 0:02:37.4]}
5... Qb6 {[%clk 0:02:42.5]} 6. Qc3 {[%clk 0:02:11.9]} 6... Nf6 {[%clk
0:02:37.1]} 7. Be3 {[%clk 0:02:10.3]} 7... Qd8 {[%clk 0:02:29.1]} 8. e5 {[%clk
0:02:08.9]} 8... Bb4 {[%clk 0:02:26.9]} 9. Qxb4 {[%clk 0:02:05]} 9... Nxb4
{[%clk 0:02:27.5]} 10. exf6 {[%clk 0:02:06.1]} 10... Nxc2+ {[%clk 0:02:28.1]}
11. Kd1 {[%clk 0:01:57.2]} 11... Nxe3+ {[%clk 0:02:26.9]} 12. Ke2 {[%clk
0:01:48.8]} 12... Nxf1 {[%clk 0:02:26.2]} 13. fxg7 {[%clk 0:01:48]} 13... Rg8
{[%clk 0:02:20.9]} 14. Kxf1 {[%clk 0:01:47.5]} 14... Rxg7 {[%clk 0:02:21.1]} 15.
Nc3 {[%clk 0:01:47.2]} 15... Qb6 {[%clk 0:02:16.5]} 16. Nf3 {[%clk 0:01:44.1]}
16... d6 {[%clk 0:02:06.7]} 17. Rb1 {[%clk 0:01:41]} 17... Bd7 {[%clk 0:02:06]}
18. Ke2 {[%clk 0:01:38.8]} 18... Bb5+ {[%clk 0:02:05.8]} 19. Kd2 {[%clk
0:01:35.3]} 19... Rc8 {[%clk 0:01:57.7]} 20. a4 {[%clk 0:01:23.2]} 20... Bc6
{[%clk 0:01:47.7]} 21. Kc2 {[%clk 0:01:14.5]} 21... Bxf3 {[%clk 0:01:47.6]} 22.
gxf3 {[%clk 0:01:14.3]} 22... Rg2+ {[%clk 0:01:46.9]} 23. Kd3 {[%clk 0:01:12.9]}
23... Rf2 {[%clk 0:01:26.6]} 24. Rhg1 {[%clk 0:01:08.4]} 24... Rxf3+ {[%clk
0:01:23.1]} 25. Ke2 {[%clk 0:01:04.8]} 25... Qf2+ {[%clk 0:01:20.3]} 26. Kd1
{[%clk 0:01:00.8]} 26... Rd3+ {[%clk 0:01:14.5]} 27. Kc1 {[%clk 0:00:53.7]}
27... Qd2# {[%clk 0:01:13.4]} 0

[Event "Torneo Nuevo Centro. Jornada 10"]
[Site "Chess.com"]
[Date "2020.08.21"]
[Round "2"]
[White "Bendayán Claros, Aaron"]
[Black "Gutierrez Marco, Dario"]
[Result "0-1"]
[WhiteElo "1990"]
[BlackElo "1834"]
[TimeControl "180+2"]
[EndTime "10:46:21 PDT"]
[Termination "Victoria de rususs por abandono"]

1. d4 {[%clk 0:03:01.9]} 1... d5 {[%clk 0:02:53.5]} 2. e3 {[%clk 0:03:01.2]}
2... Nf6 {[%clk 0:02:53.7]} 3. Bd3 {[%clk 0:03:01.9]} 3... c6 {[%clk 0:02:54.5]}
4. Nd2 {[%clk 0:03:01.5]} 4... a6 {[%clk 0:02:55.2]} 5. f4 {[%clk 0:03:02.3]}
5... Bg4 {[%clk 0:02:55]} 6. Ngf3 {[%clk 0:03:03.2]} 6... e6 {[%clk 0:02:53.8]}
7. O-O {[%clk 0:03:04.2]} 7... Be7 {[%clk 0:02:54.3]} 8. Qe1 {[%clk 0:03:05.3]}
8... Nbd7 {[%clk 0:02:51.6]} 9. Ne5 {[%clk 0:03:06.4]} 9... Bf5 {[%clk
0:02:45.2]} 10. Qe2 {[%clk 0:03:06.4]} 10... Qc7 {[%clk 0:02:35.9]} 11. c4
{[%clk 0:02:59.8]} 11... Bxd3 {[%clk 0:02:32.5]} 12. Qxd3 {[%clk 0:03:00.5]}
12... O-O {[%clk 0:02:28.9]} 13. b3 {[%clk 0:03:01]} 13... b5 {[%clk 0:02:27]}
14. c5 {[%clk 0:03:00.5]} 14... a5 {[%clk 0:02:19.7]} 15. Rf3 {[%clk 0:03:01.5]}
15... Ne8 {[%clk 0:02:12]} 16. Rh3 {[%clk 0:03:01.2]} 16... f5 {[%clk
0:02:08.6]} 17. g4 {[%clk 0:03:02.1]} 17... Nxe5 {[%clk 0:02:00.5]} 18. fxe5
{[%clk 0:03:01.5]} 18... g6 {[%clk 0:01:51.5]} 19. Rg3 {[%clk 0:02:48.3]} 19...
Bh4 {[%clk 0:01:42.5]} 20. Rg2 {[%clk 0:02:46.7]} 20... fxg4 {[%clk 0:01:29.2]}
21. e4 {[%clk 0:02:44]} 21... Ng7 {[%clk 0:01:19.6]} 22. Nf1 {[%clk 0:02:31.5]}
22... Qf7 {[%clk 0:01:12]} 23. Bh6 {[%clk 0:02:14]} 23... Nh5 {[%clk 0:01:03.2]}
24. Bxf8 {[%clk 0:01:57.6]} 24... Nf4 {[%clk 0:01:01.5]} 25. Qd2 {[%clk
0:01:44.8]} 25... Rxf8 {[%clk 0:00:53.7]} 26. exd5 {[%clk 0:01:14.8]} 26... Nh3+
{[%clk 0:00:52.6]} 27. Kh1 {[%clk 0:01:14.7]} 27... Qxf1+ {[%clk 0:00:50.6]} 0

[Event "Torneo Nuevo Centro. Jornada 10"]
[Site "Chess.com"]
[Date "2020.08.21"]
[Round "2"]
[White "Fitzpatrick Dimas  , Andrew "]
[Black "Morello Ostos, Domingo"]
[Result "0-1"]
[WhiteElo "1055"]
[BlackElo "1660"]
[TimeControl "180+2"]
[EndTime "10:46:24 PDT"]
[Termination "Victoria de dmorello por jaque mate"]

1. e4 {[%clk 0:03:01.9]} 1... c5 {[%clk 0:02:59.5]} 2. Nf3 {[%clk 0:03:02.4]}
2... Nc6 {[%clk 0:03:00.9]} 3. Nc3 {[%clk 0:03:02.2]} 3... Nf6 {[%clk
0:03:01.2]} 4. d4 {[%clk 0:03:02.6]} 4... cxd4 {[%clk 0:03:01.8]} 5. Nxd4 {[%clk
0:03:03.1]} 5... e5 {[%clk 0:03:02.3]} 6. Nxc6 {[%clk 0:03:03.1]} 6... bxc6
{[%clk 0:03:02.7]} 7. Bg5 {[%clk 0:03:00.9]} 7... Bb4 {[%clk 0:02:56.6]} 8. Bxf6
{[%clk 0:03:00.2]} 8... Qxf6 {[%clk 0:02:50.7]} 9. Qd3 {[%clk 0:02:54.6]} 9...
O-O {[%clk 0:02:48.3]} 10. O-O-O {[%clk 0:02:51.7]} 10... Qxf2 {[%clk
0:02:40.5]} 11. Rd2 {[%clk 0:02:39.2]} 11... Qc5 {[%clk 0:02:21.4]} 12. Na4
{[%clk 0:02:29.1]} 12... Qa5 {[%clk 0:02:18.9]} 13. c3 {[%clk 0:02:16.8]} 13...
Qxa4 {[%clk 0:02:10.7]} 14. a3 {[%clk 0:02:15.2]} 14... Be7 {[%clk 0:02:04.9]}
15. Qg3 {[%clk 0:02:05]} 15... Rb8 {[%clk 0:01:31.1]} 16. Qxe5 {[%clk
0:02:03.2]} 16... Bxa3 {[%clk 0:01:21.4]} 17. Qxb8 {[%clk 0:01:55.7]} 17... Be7
{[%clk 0:01:15.6]} 18. Bd3 {[%clk 0:01:36.3]} 18... d5 {[%clk 0:01:10.4]} 19.
exd5 {[%clk 0:01:34.8]} 19... Qa1+ {[%clk 0:01:05.8]} 20. Bb1 {[%clk 0:01:33.8]}
20... Bf5 {[%clk 0:01:05.8]} 21. Qxf8+ {[%clk 0:01:10.9]} 21... Kxf8 {[%clk
0:00:59.7]} 22. Kd1 {[%clk 0:01:03.6]} 22... Qxb1+ {[%clk 0:00:51.5]} 23. Ke2
{[%clk 0:01:03.6]} 23... Qxh1 {[%clk 0:00:50.5]} 24. dxc6 {[%clk 0:01:03.9]}
24... Qxg2+ {[%clk 0:00:50.7]} 25. Kd1 {[%clk 0:01:03.4]} 25... Qf1# {[%clk
0:00:46.5]} 0

[Event "Torneo Nuevo Centro. Jornada 10"]
[Site "Chess.com"]
[Date "2020.08.21"]
[Round "2"]
[White "Gracia Calvo, Andrés"]
[Black "Blanco Solaz, Ramón"]
[Result "0-1"]
[WhiteElo "1811"]
[BlackElo "2006"]
[TimeControl "180+2"]
[EndTime "10:46:30 PDT"]
[Termination "Victoria de Rbs77 por abandono"]

1. d4 {[%clk 0:03:01.9]} 1... Nf6 {[%clk 0:03:00.2]} 2. Nf3 {[%clk 0:03:00.4]}
2... g6 {[%clk 0:02:59.7]} 3. Bf4 {[%clk 0:03:00.9]} 3... Bg7 {[%clk 0:02:59.9]}
4. e3 {[%clk 0:03:01.4]} 4... O-O {[%clk 0:03:00.7]} 5. c4 {[%clk 0:03:01.4]}
5... d6 {[%clk 0:02:58.1]} 6. Nc3 {[%clk 0:03:02.2]} 6... c5 {[%clk 0:02:43.9]}
7. h3 {[%clk 0:03:02.3]} 7... cxd4 {[%clk 0:02:40.4]} 8. exd4 {[%clk 0:03:01.8]}
8... Qa5 {[%clk 0:02:28.7]} 9. Bd3 {[%clk 0:02:54.5]} 9... Nc6 {[%clk
0:02:21.7]} 10. a3 {[%clk 0:02:43.3]} 10... Qb6 {[%clk 0:02:20.1]} 11. Be3
{[%clk 0:02:38]} 11... Qd8 {[%clk 0:02:04.1]} 12. O-O {[%clk 0:02:36]} 12... e5
{[%clk 0:02:03.1]} 13. Bc2 {[%clk 0:02:18.6]} 13... Re8 {[%clk 0:01:58.4]} 14.
Re1 {[%clk 0:02:15]} 14... Nh5 {[%clk 0:01:50.1]} 15. Qd2 {[%clk 0:01:47.3]}
15... f5 {[%clk 0:01:40]} 16. Bg5 {[%clk 0:01:41.6]} 16... Bf6 {[%clk
0:01:26.3]} 17. Nd5 {[%clk 0:01:33.1]} 17... Bxg5 {[%clk 0:01:27.2]} 18. Nxg5
{[%clk 0:01:32.5]} 18... Nxd4 {[%clk 0:01:23.7]} 19. h4 {[%clk 0:01:05.2]} 19...
Nf6 {[%clk 0:01:23.2]} 20. Nxf6+ {[%clk 0:00:52.9]} 20... Qxf6 {[%clk 0:01:23]}
21. Ba4 {[%clk 0:00:52.9]} 21... Rf8 {[%clk 0:01:23.1]} 22. Rac1 {[%clk
0:00:52]} 22... Kg7 {[%clk 0:01:15.8]} 23. c5 {[%clk 0:00:51.8]} 23... h6 {[%clk
0:01:15.7]} 24. Nh3 {[%clk 0:00:50.8]} 24... d5 {[%clk 0:01:15]} 25. g3 {[%clk
0:00:45.2]} 25... Be6 {[%clk 0:01:13.1]} 26. Kh2 {[%clk 0:00:43.9]} 26... Nf3+
{[%clk 0:01:13.9]} 0

[Event "Torneo Nuevo Centro. Jornada 10"]
[Site "Chess.com"]
[Date "2020.08.21"]
[Round "2"]
[White "Montesinos Diaz, Luis"]
[Black "Serarols Mabras, Bernat"]
[Result "0-1"]
[WhiteElo "1870"]
[BlackElo "2384"]
[TimeControl "180+2"]
[EndTime "10:46:34 PDT"]
[Termination "Victoria de bernatserarols por jaque mate"]

1. d4 {[%clk 0:03:01.9]} 1... d5 {[%clk 0:03:00.6]} 2. Nf3 {[%clk 0:03:02.2]}
2... Nf6 {[%clk 0:03:01.2]} 3. e3 {[%clk 0:03:00.5]} 3... c5 {[%clk 0:03:02.3]}
4. Bd3 {[%clk 0:02:59.7]} 4... Nc6 {[%clk 0:03:02.1]} 5. b3 {[%clk 0:03:00.7]}
5... cxd4 {[%clk 0:03:02.8]} 6. exd4 {[%clk 0:03:01.2]} 6... Bg4 {[%clk
0:03:04.3]} 7. Nbd2 {[%clk 0:03:01.6]} 7... e6 {[%clk 0:03:02.9]} 8. Bb2 {[%clk
0:03:02.3]} 8... Bd6 {[%clk 0:03:03.5]} 9. a3 {[%clk 0:03:03]} 9... O-O {[%clk
0:03:04.4]} 10. O-O {[%clk 0:03:04.1]} 10... Rc8 {[%clk 0:03:05.7]} 11. c4
{[%clk 0:02:59.5]} 11... Bf4 {[%clk 0:03:00]} 12. Be2 {[%clk 0:02:24.2]} 12...
b6 {[%clk 0:02:52.2]} 13. Rc1 {[%clk 0:02:22.8]} 13... dxc4 {[%clk 0:02:47.9]}
14. bxc4 {[%clk 0:02:20.2]} 14... Bxf3 {[%clk 0:02:47.5]} 15. Nxf3 {[%clk
0:02:19.7]} 15... Bxc1 {[%clk 0:02:47.9]} 16. Qxc1 {[%clk 0:02:20.4]} 16... Na5
{[%clk 0:02:47.2]} 17. c5 {[%clk 0:02:12.1]} 17... Qd5 {[%clk 0:02:42.1]} 18.
Ne5 {[%clk 0:01:55.5]} 18... bxc5 {[%clk 0:02:36]} 19. Bf3 {[%clk 0:01:49.2]}
19... Qd6 {[%clk 0:02:35]} 20. dxc5 {[%clk 0:01:48.2]} 20... Rxc5 {[%clk
0:02:32.4]} 21. Qe3 {[%clk 0:01:34.4]} 21... Nc4 {[%clk 0:02:31.4]} 22. Nxc4
{[%clk 0:01:34]} 22... Rxc4 {[%clk 0:02:33.3]} 23. Rd1 {[%clk 0:01:34.3]} 23...
Qe7 {[%clk 0:02:16.9]} 24. h3 {[%clk 0:01:34.7]} 24... Rfc8 {[%clk 0:02:03.4]}
25. Qg5 {[%clk 0:01:34.1]} 25... h6 {[%clk 0:01:59.5]} 26. Qg3 {[%clk
0:01:32.8]} 26... a5 {[%clk 0:01:56.7]} 27. Rd7 {[%clk 0:01:09.1]} 27... Rc1+
{[%clk 0:01:39.9]} 28. Kh2 {[%clk 0:01:05.4]} 28... Qxd7 {[%clk 0:01:37.5]} 29.
Bxf6 {[%clk 0:01:04.8]} 29... g6 {[%clk 0:01:38.6]} 30. Qh4 {[%clk 0:00:56.1]}
30... Qd6+ {[%clk 0:01:32.2]} 31. g3 {[%clk 0:00:52.9]} 31... Qd2 {[%clk
0:01:33.2]} 32. Kg2 {[%clk 0:00:49.5]} 32... Qe1 {[%clk 0:01:22.1]} 33. Be4
{[%clk 0:00:48.8]} 33... Qh1# {[%clk 0:01:21.6]} 0

[Event "Torneo Nuevo Centro. Jornada 10"]
[Site "Chess.com"]
[Date "2020.08.21"]
[Round "2"]
[White "Fente Fernandez, Jose Ignacio"]
[Black "Maestre Soler, Sergio"]
[Result "1-0"]
[WhiteElo "1528"]
[BlackElo "925"]
[TimeControl "180+2"]
[EndTime "10:46:38 PDT"]
[Termination "Victoria de SrFente por jaque mate"]

1. e4 {[%clk 0:02:55]} 1... e5 {[%clk 0:02:59.6]} 2. Nf3 {[%clk 0:02:49.7]} 2...
Bc5 {[%clk 0:03:01.2]} 3. Bc4 {[%clk 0:02:47.2]} 3... h6 {[%clk 0:03:00.3]} 4.
c3 {[%clk 0:02:39.5]} 4... Nc6 {[%clk 0:02:58.3]} 5. d4 {[%clk 0:02:36.7]} 5...
exd4 {[%clk 0:02:57.5]} 6. cxd4 {[%clk 0:02:38.6]} 6... Bb4+ {[%clk 0:02:53.4]}
7. Bd2 {[%clk 0:02:38.7]} 7... Bxd2+ {[%clk 0:02:53.6]} 8. Nbxd2 {[%clk
0:02:40]} 8... Nf6 {[%clk 0:02:50.9]} 9. e5 {[%clk 0:02:35.2]} 9... Ng4 {[%clk
0:02:44.9]} 10. h3 {[%clk 0:02:27.5]} 10... Nxf2 {[%clk 0:02:33.1]} 11. Kxf2
{[%clk 0:02:20.6]} 11... d6 {[%clk 0:02:29]} 12. exd6 {[%clk 0:02:16.7]} 12...
cxd6 {[%clk 0:02:28.6]} 13. Re1+ {[%clk 0:02:17.1]} 13... Kf8 {[%clk 0:02:22.3]}
14. d5 {[%clk 0:02:04.3]} 14... Ne7 {[%clk 0:02:07.5]} 15. Ne4 {[%clk
0:01:52.5]} 15... Bf5 {[%clk 0:01:57.5]} 16. Nd4 {[%clk 0:01:49.5]} 16... Bxe4
{[%clk 0:01:54.5]} 17. Rxe4 {[%clk 0:01:51]} 17... Ng6 {[%clk 0:01:48.3]} 18.
Qf3 {[%clk 0:01:49]} 18... Qf6 {[%clk 0:01:41.3]} 19. Rae1 {[%clk 0:01:00.8]}
19... Ne5 {[%clk 0:01:36.7]} 20. Qxf6 {[%clk 0:00:51.1]} 20... gxf6 {[%clk
0:01:36.5]} 21. Bb5 {[%clk 0:00:43.9]} 21... a6 {[%clk 0:01:34.4]} 22. Ba4
{[%clk 0:00:37.8]} 22... Nd3+ {[%clk 0:01:31.6]} 23. Kg1 {[%clk 0:00:32.6]}
23... Nxe1 {[%clk 0:01:31.7]} 24. Rxe1 {[%clk 0:00:34.5]} 24... Rc8 {[%clk
0:01:22.1]} 25. Nf5 {[%clk 0:00:30.2]} 25... Rc4 {[%clk 0:01:18.1]} 26. Re8#
{[%clk 0:00:23.4]} 1